[Event "Budapest Chess Festival 2024"]
[Site "Budapest"]
[Date "2024.05.26"]
[Round "4.14"]
[White "Visakh N R"]
[Black "Borgaonkar, Akshay"]
[Result "0-1"]
[ECO "A11"]
[WhiteElo "2511"]
[BlackElo "2372"]
[Annotator "RC"]
[PlyCount "112"]
[EventDate "2024.05.20"]
[EventType "swiss"]
[EventCountry "HUN"]
[SourceTitle "playchess.com"]
[Source "ChessBase"]
[SourceQuality "1"]
[TimeControl "40/5400+30:1800+30"]

1. c4 {[%emt 0:00:44]} c6 {[%emt 0:00:40]} 2. Nf3 {[%emt 0:00:38]} d5 {[%emt 0:00:12]} 3. e3 {[%emt 0:00:13]} Nf6 {[%emt 0:00:11]} 4. Nc3 {[%emt 0:00:08]} e6 {[%emt 0:00:29]} 5. b3 {[%emt 0:00:27]} Bd6 {[%emt 0:00:11]} 6. Bb2 {[%emt 0:03:29]} O-O {[%emt 0:00:13]} 7. Qc2 {[%emt 0:06:48]} e5 {[%emt 0:07:31]} 8. cxd5 {[%emt 0:05:21]} cxd5 {[%emt 0:00:39]} 9. Nb5 {[%emt 0:03:33]} Nc6 {[%emt 0:00:28]} 10. Nxd6 {[%emt 0:00:20]} Qxd6 {[%emt 0:00:10]} 11. Rc1 {[%emt 0:00:40]} Bg4 {[%emt 0:12:14]} 12. h3 {[%emt 0:15:12]} Bxf3 {[%emt 0:11:20]} 13. gxf3 {[%emt 0:00:02]} Rac8 {[%emt 0:00:52]} 14. Qb1 {[%emt 0:03:02]} d4 {[%emt 0:07:22]} 15. Bg2 {[%emt 0:06:04]} Nb4 {[%emt 0:14:57]} 16. O-O {[%emt 0:01:03]} Qa6 {[%emt 0:07:39]} 17. Rxc8 {[%emt 0:11:58]} Rxc8 {[%emt 0:00:02]} 18. Rc1 {[%emt 0:00:08]} Rxc1+ {[%emt 0:05:02]} 19. Qxc1 {[%emt 0:00:32]} Nc6 {[%emt 0:00:19]} 20. a3 {[%emt 0:04:57]} Qd3 {[%emt 0:00:58]} 21. b4 {[%emt 0:05:09]} h6 {[%emt 0:00:59]} 22. Bf1 {[%emt 0:03:28]} Qg6+ {[%emt 0:04:18]} 23. Kh2 {[%emt 0:00:07]} a6 {[%emt 0:01:27]} 24. Qc4 {[%emt 0:07:00]} Qb1 {[%emt 0:01:42]} 25. Bc1 {[%emt 0:04:06]} Qf5 {[%emt 0:00:43]} 26. Bg2 {[%emt 0:00:02]} e4 {[%emt 0:07:46]} 27. Qc5 {[%emt 0:00:20]} Qxc5 {[%emt 0:02:50]} 28. bxc5 {[%emt 0:00:02]} Ne5 {[%emt 0:02:47]} 29. Bb2 {[%emt 0:03:26]} Nxf3+ {[%emt 0:01:12]} 30. Bxf3 {[%emt 0:05:01]} exf3 {[%emt 0:00:03]} 31. d3 {[%emt 0:02:04]} dxe3 {[%emt 0:01:52]} 32. fxe3 {[%emt 0:00:02]} Nd5 {[%emt 0:00:17]} 33. Bd4 {[%emt 0:00:09]} f5 {[%emt 0:00:40]} 34. Kg3 {[%emt 0:00:32]} g5 {[%emt 0:01:55]} 35. Kxf3 {[%emt 0:03:35]} Kf7 {[%emt 0:00:05]} 36. e4 {[%emt 0:00:42]} fxe4+ {[%emt 0:00:40]} 37. dxe4 {[%emt 0:01:13]} Nf4 {[%emt 0:01:43]} 38. h4 {[%emt 0:04:06]} Ne6 {[%emt 0:00:26]} 39. Be3 {[%emt 0:00:02]} gxh4 {[%emt 0:00:20]} 40. Kg4 {[%emt 0:00:00]} Ng5 {[%emt 0:00:00]} 41. Kxh4 {[%emt 0:02:48]} Nxe4 {[%emt 0:02:34]} 42. Bxh6 {[%emt 0:05:10]} Nxc5 {[%emt 0:00:41]} 43. Kg5 {[%emt 0:00:02]} Ke6 {[%emt 0:01:12]} 44. Kg6 {[%emt 0:00:01]} Ne4 {[%emt 0:02:27]} 45. Bf8 {[%emt 0:03:42]} b5 {[%emt 0:01:41]} 46. Bb4 {[%emt 0:01:53]} Nd6 {[%emt 0:01:38]} 47. Kg7 {[%emt 0:00:45]} Nc4 {[%emt 0:01:21]} 48. Kf8 {[%emt 0:00:02]} a5 {[%emt 0:02:31]} 49. Be1 {[%emt 0:00:12]} a4 {[%emt 0:01:26]} 50. Bb4 {[%emt 0:00:02]} Kd5 {[%emt 0:01:13]} 51. Ke7 {[%emt 0:00:03]} Ne3 {[%emt 0:02:42]} 52. Kd7 {[%emt 0:02:54]} Nc2 {[%emt 0:00:33]} 53. Bf8 {[%emt 0:00:03]} b4 {[%emt 0:01:01]} 54. axb4 a3 {[%emt 0:00:01]} 55. Bg7 {[%emt 0:00:28]} Nd4 {[%emt 0:00:02]} 56. b5 {[%emt 0:00:38]} a2 {[%emt 0:00:04]} 0-1

[Event "Budapest Chess Festival 2024"]
[Site "Budapest"]
[Date "2024.05.26"]
[Round "4.15"]
[White "Popovic, Dusan"]
[Black "Moksh Amit Doshi"]
[Result "1/2-1/2"]
[ECO "C85"]
[WhiteElo "2486"]
[BlackElo "2359"]
[Annotator "TA"]
[PlyCount "42"]
[EventDate "2024.05.20"]
[EventType "swiss"]
[EventCountry "HUN"]
[SourceTitle "playchess.com"]
[Source "ChessBase"]
[SourceQuality "1"]
[TimeControl "40/5400+30:1800+30"]

{[%evp 14,42,15,4,14,0,16,9,2,6,17,5,7,-6,-11,-38,9,13,16,18,14,7,12,0,0,0,0,0,0,0,0]} 1. e4 {[%emt 0:01:37]} e5 {[%emt 0:02:06]} 2. Nf3 {[%emt 0:00:09]} Nc6 {[%emt 0:00:07]} 3. Bb5 {[%emt 0:00:06]} a6 {[%emt 0:00:07]} 4. Ba4 {[%emt 0:00:05]} Nf6 {[%emt 0:00:08]} 5. O-O {[%emt 0:00:13]} Be7 {[%emt 0:00:07]} 6. Bxc6 {[%emt 0:00:19]} dxc6 {[%emt 0:00:09]} 7. d3 {[%emt 0:00:05]} Bd6 {[%emt 0:03:55]} 8. Nbd2 {[%emt 0:03:58][%cal Bb1d2,Bd2b3,Bb3a5][%mdl 32]} Be6 {[%emt 0:01:11]} 9. Nb3 {[%emt 0:02:20]} a5 {[%emt 0:01:07][%cal Ba6a5,Ba5a4][%mdl 32]} 10. Qe1 {[%emt 0:03:04]} a4 {[%emt 0:04:16]} 11. Na5 {[%emt 0:01:16]} Qb8 {[%emt 0:04:31]} 12. Bd2 {[%emt 0:04:10]} O-O {[%emt 0:04:40]} 13. Bc3 {[%emt 0:16:17]} Nd7 {[%emt 0:09:31]} 14. d4 {[%emt 0:04:21][%cal Rd4e5] [#]} Rxa5 {[%emt 0:15:57]} 15. Bxa5 $11 {[%emt 0:00:22] Black should prevent dxe5. The position is equal.} Bc4 {[%emt 0:00:08] [#]} 16. Bc3 $1 {[%emt 0:10:42][%cal Rd4e5] dxe5! is the strong threat.} Bxf1 {[%emt 0:08:03]} 17. Qxf1 {[%emt 0:02:47]} Re8 {[%emt 0:03:30]} 18. dxe5 {[%emt 0:24:00]} Nxe5 {[%emt 0:01:08]} 19. Nxe5 {[%emt 0:04:24]} Bxe5 {[%emt 0:02:41]} 20. Bxe5 {[%emt 0:00:05]} Rxe5 {[%emt 0:00:08]} 21. Qc4 {[%emt 0:01:28]} Qe8 {[%emt 0:03:24] Not much happened in this game.   Weighted Error Value: White=0.08 (flawless) /Black=0.07 (flawless) .  Mistake:       	---       	Black=1      Inaccurate:     	White=1     	---        OK:         	White=1     	Black=7} 1/2-1/2

[Event "Budapest Chess Festival 2024"]
[Site "Budapest"]
[Date "2024.05.26"]
[Round "4.16"]
[White "Egresi, Mate"]
[Black "Costa, Leonardo"]
[Result "0-1"]
[ECO "C77"]
[WhiteElo "2384"]
[BlackElo "2486"]
[Annotator "TA"]
[PlyCount "158"]
[EventDate "2024.05.20"]
[EventType "swiss"]
[EventCountry "HUN"]
[SourceTitle "playchess.com"]
[Source "ChessBase"]
[SourceQuality "1"]
[TimeControl "40/5400+30:1800+30"]

{[%evp 70,158,-68,-91,-47,-103,-101,-90,-58,-87,-85,-85,-87,-89,-87,-85,-85,-102,-106,-124,-142,-135,-138,-146,-134,-222,-215,-216,-200,-283,-286,-268,-249,-241,-247,-475,-350,-464,-467,-430,-347,-426,-426,-426,-426,-351,-559,-576,-510,-551,-634,-627,-616,-686,-575,-1952,-942,-787,-635,-583,-633,-594,-573,-487,-527,-1143,-1137,-4134,-3311,-29971,-29973,-29971,-29975,-29974,-29974,-29981,-29982,-29980,-29981,-29982,-1136,-1114,-1082,-906,-844,-789,-758,-29987,-29988,-29988,-29989]} 1. e4 {[%emt 0:00:33]} e5 {[%emt 0:00:36]} 2. Nf3 {[%emt 0:00:05]} Nc6 {[%emt 0:00:04]} 3. Bb5 {[%emt 0:00:05]} a6 {[%emt 0:00:04]} 4. Ba4 {[%emt 0:00:03]} Nf6 {[%emt 0:00:12]} 5. d3 {[%emt 0:00:05]} d6 {[%emt 0:00:10]} 6. c3 {[%emt 0:00:10]} g6 {[%emt 0:00:07]} 7. O-O {[%emt 0:00:00]} Bg7 {[%emt 0:00:05]} 8. Re1 {[%emt 0:00:14]} O-O {[%emt 0:00:04]} 9. h3 {[%emt 0:00:04]} h6 {[%emt 0:00:04] C77: Ruy Lopez: 3...a6 4 Ba4 Nf6, unusual lines.} 10. Be3 {[%emt 0:00:04]} Nh7 $146 {[%emt 0:10:37]} ({Predecessor:} 10... Re8 11. Nbd2 d5 12. Bxc6 bxc6 13. d4 dxe4 14. Nxe5 c5 15. Nb3 cxd4 16. cxd4 Bb7 17. Qd2 {½-½ Carlsen,M (2830)-Firouzja,A (2738) Chess.com Classic Div 1 W rapid 2024 (4.1)}) 11. d4 {[%emt 0:07:33]} f5 {[%emt 0:02:17]} 12. exf5 {[%emt 0:14:15]} e4 {[%emt 0:04:28]} 13. fxg6 {[%emt 0:04:12]} exf3 {[%emt 0:00:11]} 14. gxh7+ {[%emt 0:00:06]} Kh8 {[%emt 0:00:53]} 15. Nd2 {[%emt 0:09:26]} fxg2 {[%emt 0:05:02]} 16. Qh5 {[%emt 0:08:18]} Rf5 {[%emt 0:13:49]} 17. Qg6 {[%emt 0:00:29]} Ne7 {[%emt 0:16:59]} 18. Qxg2 {[%emt 0:06:44]} Be6 {[%emt 0:06:08]} 19. Bc2 {[%emt 0:06:18]} Rh5 {[%emt 0:03:21]} 20. Bf4 {[%emt 0:03:17]} Nd5 {[%emt 0:03:32]} 21. Bg3 {[%emt 0:04:43]} Bxh3 {[%emt 0:01:50]} 22. Qf3 {[%emt 0:05:19]} Nf6 {[%emt 0:02:19]} 23. Ne4 {[%emt 0:19:49]} Bg4 {[%emt 0:00:51]} 24. Qf4 {[%emt 0:00:10]} Nxe4 {[%emt 0:12:38]} 25. Bxe4 {[%emt 0:03:04]} Qd7 {[%emt 0:00:30]} 26. Bf3 {[%emt 0:02:55]} Rg5 {[%emt 0:08:14]} 27. Bg2 {[%emt 0:00:01]} Rf8 {[%emt 0:01:05]} 28. Qe4 {[%emt 0:00:25]} Bh3 {[%emt 0:01:10]} 29. Bxh3 {[%emt 0:02:36]} Qxh3 {[%emt 0:00:03]} 30. Qg2 {[%emt 0:00:10]} Qf5 {[%emt 0:02:34]} 31. Re4 {[%emt 0:01:06]} d5 {[%emt 0:00:17]} 32. Rh4 {[%emt 0:01:40]} Re8 {[%emt 0:02:08]} 33. Rf4 {[%emt 0:00:40]} Qc2 {[%emt 0:00:38]} 34. Rf1 {[%emt 0:01:16]} Qxb2 {[%emt 0:00:21]} 35. Qf3 {[%emt 0:00:01]} Qxa2 {[%emt 0:02:08]} 36. Rf5 {[%emt 0:00:38]} Qe2 {[%emt 0:01:33]} (36... Kxh7 $2 37. Rxg5 Qd2 38. Rxd5 $18) 37. Qxd5 {[%emt 0:01:45]} (37. Qxe2 $1 $15 Rxe2 38. Rf7) 37... c6 $17 {[%emt 0:00:22]} 38. Qd7 {[%emt 0:00:35]} Qe7 {[%emt 0:01:08]} 39. Qxe7 Rxe7 {[%emt 0:00:03]} 40. Rxg5 {[%emt 0:00:00]} hxg5 {[%emt 0:00:00]} 41. Bd6 {[%emt 0:07:46]} Rd7 {[%emt 0:05:02]} 42. Bc5 {[%emt 0:00:13]} Kxh7 {[%emt 0:00:19]} 43. Kg2 {[%emt 0:08:15]} Kg6 {[%emt 0:01:40]} 44. Re1 {[%emt 0:00:10]} Bf6 {[%emt 0:03:10]} 45. Kg3 {[%emt 0:02:30]} Kf5 {[%emt 0:00:18]} 46. f3 {[%emt 0:03:07]} Rh7 {[%emt 0:03:25]} 47. Re2 {[%emt 0:01:28]} (47. Kg2 $17 {was worth a try.}) 47... Bd8 $1 $19 {[%emt 0:06:26]} 48. Re5+ {[%emt 0:06:58]} Kf6 {[%emt 0:00:05]} 49. Re8 {[%emt 0:00:04]} (49. Bd6 $142) 49... Bc7+ $1 $19 {[%emt 0:00:34]} 50. Kf2 {[%emt 0:00:05]} b6 $1 {[%emt 0:02:51]} 51. Ba3 {[%emt 0:01:04]} Rh2+ {[%emt 0:00:06]} 52. Ke3 $2 {[%emt 0:01:49]} (52. Kf1) 52... Ra2 {[%emt 0:00:15]} 53. Bf8 {[%emt 0:00:16]} Bf4+ {[%emt 0:07:06]} 54. Kd3 {[%emt 0:00:01]} b5 {[%emt 0:00:08]} 55. Rc8 {[%emt 0:00:08]} Kf5 {[%emt 0:01:00]} 56. c4 {[%emt 0:00:10]} Rf2 {[%emt 0:01:05]} 57. Rxc6 {[%emt 0:01:57]} Rxf3+ {[%emt 0:00:03]} 58. Ke2 {[%emt 0:00:06]} Re3+ {[%emt 0:00:33]} 59. Kf1 {[%emt 0:00:41]} Ke4 {[%emt 0:01:57]} 60. cxb5 {[%emt 0:03:17]} axb5 {[%emt 0:00:04]} (60... Kxd4 61. Bc5+ (61. Rxa6 Rb3 $11) (61. bxa6 Re8 $14) 61... Kd5 62. Bxe3 axb5 63. Rc5+ Kd6 64. Bd4 $18 (64. Bxf4+ Kxc5 65. Be3+ Kd5 $11)) 61. d5 {[%emt 0:00:49]} Rd3 {[%emt 0:00:58]} ({Inferior is} 61... Kxd5 62. Rc5+ Ke4 63. Rxb5 $11) 62. Re6+ {[%emt 0:01:10]} Kxd5 {[%emt 0:00:05]} (62... Kf3 $142 63. Bb4 Rxd5) 63. Re8 {[%emt 0:00:05]} Rb3 {[%emt 0:01:44]} 64. Ke2 {[%emt 0:00:49]} b4 {[%emt 0:00:49]} 65. Rd8+ {[%emt 0:00:18]} Ke4 {[%emt 0:00:13]} 66. Re8+ {[%emt 0:00:04]} Kf5 {[%emt 0:00:04]} 67. Bc5 {[%emt 0:00:09]} Be5 {[%emt 0:01:05]} 68. Re7 {[%emt 0:00:22]} Rb1 {[%emt 0:00:43]} 69. Rb7 {[%emt 0:01:41]} b3 {[%emt 0:00:03]} 70. Rb5 {[%emt 0:00:28]} Ke4 {[%emt 0:00:12]} 71. Rb4+ {[%emt 0:00:30] [#]} Kd5 $1 {[%emt 0:00:04]} 72. Be7 {[%emt 0:00:04]} b2 {[%emt 0:01:22]} 73. Rb5+ {[%emt 0:00:30]} Kc6 {[%emt 0:00:12]} 74. Rxe5 {[%emt 0:00:09] [#]} Re1+ {[%emt 0:00:04]} (74... Rh1 $142 $3 {[%mdl 512]} 75. Re6+ (75. Rc5+ Kd7) 75... Kd7 (75... Kb7 76. Bxg5 b1=Q 77. Re7+ Kc6 78. Ke3 Qf5 79. Bf4 Rh3+ 80. Kf2 Qxf4+ 81. Ke2 Qf3+ 82. Ke1 Rh1+ 83. Kd2 Rh2+ 84. Re2 Rxe2+ 85. Kd1 Qf1#) 76. Rd6+ Kxe7 77. Rb6 b1=Q (77... b1=B $2 78. Kf2 $19) 78. Rxb1 Rxb1 79. Ke3 Re1+ 80. Kf2 Re5 81. Kg2 Kf6 82. Kf3 Re8 83. Kg2 Kf5 84. Kg3 g4 85. Kf2 Kf4 86. Kg2 g3 87. Kg1 Kf3 88. Kf1 Re4 89. Kg1 Re1#) 75. Kxe1 $19 {[%emt 0:00:06]} b1=Q+ {[%emt 0:00:03]} (75... b1=B $2 {too greedy.} 76. Kf2 $18 (76. Bxg5 Bh7 $18)) 76. Kf2 {[%emt 0:00:10]} Qc2+ {[%emt 0:01:08]} 77. Kf3 {[%emt 0:01:16]} Qd1+ {[%emt 0:00:41]} 78. Kg3 {[%emt 0:01:16]} Qg1+ {[%emt 0:00:27]} 79. Kf3 {[%emt 0:00:05]} Qf1+ {[%emt 0:00:38]} 0-1

[Event "Budapest Chess Festival 2024"]
[Site "Budapest"]
[Date "2024.05.26"]
[Round "4.17"]
[White "Dolzhykova, Kateryna"]
[Black "Sokolovsky, Yahli"]
[Result "0-1"]
[ECO "C54"]
[WhiteElo "2305"]
[BlackElo "2484"]
[Annotator "TA"]
[PlyCount "70"]
[EventDate "2024.05.20"]
[EventType "swiss"]
[EventCountry "HUN"]
[SourceTitle "playchess.com"]
[Source "ChessBase"]
[SourceQuality "1"]
[TimeControl "40/5400+30:1800+30"]

{[%evp 9,70,0,2,-32,-39,-46,-35,-31,-35,-43,-41,-48,27,0,0,-41,-25,-23,0,-48,-4,-77,-43,-48,-42,-60,-31,-108,-108,-112,-69,-144,-120,-139,-85,-327,-327,-634,-625,-837,-813,-786,-769,-545,-537,-929,-929,-6334,-9712,-29986,-29986,-29973,-5265,-29990,-29991,-29991,-29992,-29992,-29993,-29993,-29994,-29994,-29993]} 1. e4 {[%emt 0:00:34]} e5 {[%emt 0:07:49]} 2. Nf3 {[%emt 0:00:08]} Nc6 {[%emt 0:00:04]} 3. Bc4 {[%emt 0:00:06]} Bc5 {[%emt 0:00:11]} 4. c3 {[%emt 0:00:16]} Nf6 {[%emt 0:00:04]} 5. d4 {[%emt 0:00:14]} exd4 {[%emt 0:00:07]} 6. b4 {[%emt 0:00:12]} Bb6 {[%emt 0:00:08]} 7. e5 {[%emt 0:00:20]} d5 {[%emt 0:00:06]} 8. exf6 {[%emt 0:00:14] Black is slightly better.} dxc4 {[%emt 0:00:09]} 9. Qe2+ {[%emt 0:00:06]} Be6 {[%emt 0:00:04]} 10. b5 $1 {[%emt 0:00:16] [#]} Nb4 $1 {[%emt 0:00:11]} 11. cxb4 {[%emt 0:03:19]} (11. fxg7 {seems wilder.} Rg8 12. cxb4 Qf6 13. Qe5) 11... Qxf6 {[%emt 0:00:11]} 12. a4 {[%emt 0:00:14]} a5 $36 {[%emt 0:17:30][%mdl 2048] Black fights for an advantage.} (12... d3 $5 13. Qb2 d2+ 14. Nbxd2 c3 $17) 13. bxa6 {[%emt 0:04:34]} bxa6 {[%emt 0:00:16]} 14. Bg5 {[%emt 0:10:22]} (14. a5 $11 Ba7 15. Qe5) 14... Qf5 {[%emt 0:06:50]} 15. Nbd2 {[%emt 0:06:32]} (15. O-O $11) 15... O-O {[%emt 0:02:12] And now ...Bd5 would win.} (15... f6 $5 16. Bf4 O-O $17 (16... c3 17. O-O $15)) 16. Nxc4 {[%emt 0:13:11]} Bd5 $1 {[%emt 0:13:29]} 17. Nxb6 {[%emt 0:09:45]} cxb6 {[%emt 0:01:25]} 18. Qd2 {[%emt 0:11:37]} (18. Nxd4 $2 Qxg5 19. h4 Qf4 $19 (19... Qxg2 $2 20. O-O-O $19)) (18. O-O $15 Bxf3 19. Qxf3 Qxg5 20. Rad1) 18... Bxf3 $17 {[%emt 0:15:25]} 19. gxf3 {[%emt 0:00:12] aiming for 0-0.} Rae8+ {[%emt 0:00:07]} 20. Kf1 $1 {[%emt 0:00:30] [#] Threatens to win with Rg1.} Qh3+ $1 {[%emt 0:01:02][%mdl 1024] Black has strong compensation.} 21. Kg1 {[%emt 0:00:03]} Re6 {[%emt 0:07:34] Black is more active.} (21... Qxf3 $142 {White must now prevent ...Qg4+.} 22. Qf4 (22. Qxd4 $2 Re4 $19) 22... Qd5) 22. Bf4 $2 {[%emt 0:07:54] [#] White does not recover from this.} (22. Qxd4 $17 {is the only way for White.} Rfe8 23. Rf1 Qxf3 (23... Re1 24. Qd3 $11) 24. Qd1) 22... Rfe8 $1 $19 {[%emt 0:04:03] Hoping for ...Re2.} 23. Rf1 $2 {[%emt 0:02:48]} (23. Qxd4 $2 {is a self mate.} Re1+ 24. Rxe1 Rxe1#) (23. Bg3) 23... h5 {[%emt 0:01:49]} ({Less strong is} 23... Qxf3 24. Bg3 $17) 24. Bg3 {[%emt 0:04:42]} Re2 {[%emt 0:01:16]} 25. Qd1 {[%emt 0:06:49]} b5 {[%emt 0:08:17]} 26. axb5 {[%emt 0:00:41]} axb5 {[%emt 0:00:01]} 27. f4 {[%emt 0:02:01]} R8e4 {[%emt 0:04:43]} 28. f5 {[%emt 0:01:51]} h4 {[%emt 0:00:13]} 29. f6 {[%emt 0:02:14]} gxf6 {[%emt 0:00:47]} (29... hxg3 30. hxg3 Qg4 31. Qd3 $11) 30. Qa1 {[%emt 0:00:01]} Kg7 {[%emt 0:00:58][%cal Oh3f5] ( -> ...Qf5!)} (30... hxg3 31. hxg3 Qc8 32. Qa3 $17) 31. Qb1 {[%emt 0:00:46] [#]} R4e3 $3 {[%emt 0:02:43][%mdl 512] Black mates.} 32. Bxh4 {[%emt 0:02:53]} Qxh4 {[%emt 0:00:23][%cal Rh4g4]} 33. Qf5 {[%emt 0:02:02]} Re5 {[%emt 0:00:27]} 34. Qf3 {[%emt 0:00:42]} Rg5+ {[%emt 0:00:06]} 35. Qg3 {[%emt 0:00:02]} d3 {[%emt 0:00:10] Weighted Error Value: White=1.03/Black=0.11 (very precise) .  Loses game:     	White=1     	---        Mistake:       	White=4     	Black=2      Inaccurate:     	White=4     	Black=4      OK:         	White=3     	Black=6      Best:        	White=1     	Black=2      Strong:       	White=2     	Black=3} 0-1

[Event "Budapest Chess Festival 2024"]
[Site "Budapest"]
[Date "2024.05.26"]
[Round "4.18"]
[White "Krishnan, Ritvik"]
[Black "Hera, Imre Jr."]
[Result "1/2-1/2"]
[ECO "E29"]
[WhiteElo "2298"]
[BlackElo "2542"]
[Annotator "TA"]
[PlyCount "159"]
[EventDate "2024.05.20"]
[EventType "swiss"]
[EventCountry "HUN"]
[SourceTitle "playchess.com"]
[Source "ChessBase"]
[SourceQuality "1"]
[TimeControl "40/5400+30:1800+30"]

{[%evp 75,159,-45,-45,-45,-45,-45,-45,-45,-45,-45,-45,-45,-45,-45,0,0,0,0,0,0,0,0,0,0,0,0,0,0,0,0,0,0,0,0,0,0,0,0,0,0,0,0,0,0,0,0,0,0,0,-347,0,0,0,0,0,0,0,0,0,0,0,0,0,0,0,0,0,0,0,0,0,0,0,0,0,0,0,0,0,0,0,0,0,0,0,0]} 1. d4 {[%emt 0:00:33]} Nf6 {[%emt 0:01:04]} 2. c4 {[%emt 0:00:09]} e6 {[%emt 0:00:05]} 3. Nc3 {[%emt 0:00:02]} Bb4 {[%emt 0:00:05]} 4. e3 {[%emt 0:00:05]} O-O {[%emt 0:00:08]} 5. a3 {[%emt 0:00:01]} Bxc3+ {[%emt 0:00:17]} 6. bxc3 {[%emt 0:00:03]} c5 {[%emt 0:00:34]} 7. Bd3 {[%emt 0:00:05]} Nc6 {[%emt 0:01:11]} 8. Rb1 {[%emt 0:00:04]} b6 {[%emt 0:01:44]} 9. e4 {[%emt 0:00:07]} e5 {[%emt 0:09:45]} 10. d5 {[%emt 0:00:52]} Ne7 {[%emt 0:02:37]} 11. Ne2 {[%emt 0:02:07]} Ng6 {[%emt 0:00:07]} 12. O-O {[%emt 0:00:52]} d6 {[%emt 0:02:02]} 13. Bg5 {[%emt 0:06:14]} h6 {[%emt 0:00:17]} 14. Be3 {[%emt 0:00:05]} Ng4 {[%emt 0:11:51]} 15. Bd2 {[%emt 0:01:40]} Qh4 {[%emt 0:01:52]} 16. h3 {[%emt 0:00:34]} Nf6 {[%emt 0:00:02]} 17. f3 {[%emt 0:16:49]} Nh5 {[%emt 0:07:11]} 18. Qe1 {[%emt 0:06:08]} Qxe1 {[%emt 0:13:39]} 19. Rfxe1 {[%emt 0:02:08]} Nhf4 {[%emt 0:00:02]} 20. Nxf4 {[%emt 0:02:43]} exf4 {[%emt 0:00:14]} 21. Kf2 {[%emt 0:12:03]} Ne5 {[%emt 0:01:20]} 22. Bf1 {[%emt 0:00:36]} g5 {[%emt 0:02:19]} 23. g3 {[%emt 0:03:27]} fxg3+ {[%emt 0:00:02]} 24. Kxg3 {[%emt 0:00:01]} f6 {[%emt 0:06:37]} 25. f4 {[%emt 0:03:17]} gxf4+ {[%emt 0:07:44]} 26. Bxf4 {[%emt 0:00:05]} Kh7 {[%emt 0:00:13]} 27. Be2 {[%emt 0:03:57]} Ba6 {[%emt 0:11:48]} 28. Bxe5 {[%emt 0:02:01]} fxe5 {[%emt 0:00:05]} 29. Rf1 {[%emt 0:00:36]} Kg7 {[%emt 0:01:44]} 30. Rxf8 {[%emt 0:01:36]} Rxf8 {[%emt 0:00:04]} 31. Rf1 {[%emt 0:00:04]} Rxf1 {[%emt 0:01:10]} 32. Bxf1 {[%emt 0:00:01]} Bc8 {[%emt 0:00:23]} 33. Be2 {[%emt 0:01:25]} Bd7 {[%emt 0:00:06]} 34. Bd1 {[%emt 0:02:12]} Kf6 {[%emt 0:00:15]} 35. h4 {[%emt 0:01:17]} Ke7 {[%emt 0:00:26]} 36. Kf2 {[%emt 0:00:52]} Kd8 {[%emt 0:00:54]} 37. Ke3 {[%emt 0:00:38]} Kc7 {[%emt 0:00:13]} 38. Kd3 {[%emt 0:01:19]} Bh3 {[%emt 0:05:49]} 39. Kd2 {[%emt 0:11:42]} Kb7 {[%emt 0:02:26]} 40. Be2 {[%emt 0:00:00]} Ka6 {[%emt 0:00:00]} 41. Kc2 {[%emt 0:04:18]} Ka5 {[%emt 0:02:26]} 42. Kb3 {[%emt 0:05:43]} Bg2 {[%emt 0:07:01]} 43. Bd3 $1 {[%emt 0:00:27]} Bf3 {[%emt 0:00:08]} 44. Kb2 {[%emt 0:01:33]} a6 {[%emt 0:11:58]} 45. Kb3 {[%emt 0:03:51]} Bd1+ {[%emt 0:06:55]} 46. Kb2 {[%emt 0:09:17]} Ka4 {[%emt 0:00:01]} 47. Kc1 $1 {[%emt 0:02:36]} Bg4 {[%emt 0:00:15]} (47... Bb3 $5 48. Kb2 $8 Bd1 $11) 48. Kb2 {[%emt 0:00:08]} Bd7 {[%emt 0:01:18]} 49. Bc2+ {[%emt 0:00:17]} Ka5 {[%emt 0:00:01]} 50. Kb3 {[%emt 0:01:14]} Ba4+ {[%emt 0:05:18]} 51. Kb2 {[%emt 0:05:32]} Be8 {[%emt 0:00:01]} 52. Kb3 {[%emt 0:00:48]} Bh5 {[%emt 0:00:02]} 53. Bd3 {[%emt 0:00:25]} Bg6 {[%emt 0:00:06]} 54. Kb2 {[%emt 0:01:42]} Bh7 {[%emt 0:00:01]} 55. Kb3 {[%emt 0:00:33]} Bg8 {[%emt 0:00:01]} 56. Kb2 {[%emt 0:00:17]} Bf7 {[%emt 0:00:01]} 57. Kb3 {[%emt 0:00:34]} Bh5 {[%emt 0:00:13]} 58. Kb2 {[%emt 0:00:56]} Bg4 {[%emt 0:02:26]} 59. Kb3 {[%emt 0:00:09]} b5 {[%emt 0:00:18]} 60. cxb5 {[%emt 0:07:33]} axb5 {[%emt 0:00:01]} 61. Bc2 {[%emt 0:01:35]} Be2 {[%emt 0:00:19]} 62. Bb1 $2 {[%emt 0:00:50][%mdl 8192]} (62. Kb2 $11 {and White is okay.}) 62... Bd1+ $2 {[%emt 0:04:20]} (62... Bc4+ $19 63. Kb2 Be2) 63. Kb2 $11 {[%emt 0:00:31]} Ka4 {[%emt 0:01:20]} 64. Bd3 {[%emt 0:00:48]} b4 {[%emt 0:02:22]} (64... c4 $5 65. Bb1 $8 Bf3 $11) 65. axb4 {[%emt 0:00:30]} cxb4 {[%emt 0:00:01]} 66. Kc1 {[%emt 0:00:24]} Bf3 {[%emt 0:01:21]} 67. cxb4 $1 {[%emt 0:00:10]} Kxb4 {[%emt 0:00:02]} 68. Kd2 {[%emt 0:00:08]} Kb3 {[%emt 0:00:07]} 69. Ke3 {[%emt 0:00:19]} Bg2 {[%emt 0:00:19]} 70. Kd2 {[%emt 0:01:33]} Kb2 {[%emt 0:00:06]} 71. Ke3 {[%emt 0:00:13]} Kc3 {[%emt 0:00:20]} 72. Be2 {[%emt 0:00:19]} Bh3 {[%emt 0:00:05]} 73. Bd1 {[%emt 0:00:19]} Bd7 {[%emt 0:00:11]} 74. Be2 {[%emt 0:00:23]} Kc2 {[%emt 0:00:08]} 75. Bf3 {[%emt 0:00:39]} Bb5 {[%emt 0:00:58]} 76. Bg4 {[%emt 0:00:16]} Kc1 {[%emt 0:00:08]} 77. Bf3 {[%emt 0:00:15]} Ba4 {[%emt 0:00:04]} 78. Kd3 {[%emt 0:03:06]} Kb2 {[%emt 0:01:03]} 79. Kc4 {[%emt 0:01:22]} Ka3 {[%emt 0:03:02]} 80. Bg4 {[%emt 0:01:44]} 1/2-1/2